[Event "Prague Open 2024"]
[Site "Prague"]
[Date "2024.01.12"]
[Round "9.14"]
[White "Teng, Jiarong"]
[Black "Sindler, Michal"]
[Result "1/2-1/2"]
[ECO "B67"]
[WhiteElo "2063"]
[BlackElo "2158"]
[Annotator "TA"]
[PlyCount "32"]
[EventDate "2024.01.02"]
[EventType "swiss"]
[EventCountry "CZE"]
[SourceTitle "playchess.com"]
[Source "ChessBase"]
[SourceQuality "1"]
[TimeControl "40/5400+30:1800+30"]

{[%evp 20,32,68,45,70,59,62,43,51,15,22,18,32,29,31]} 1. e4 {[%emt 0:00:02]} c5 {[%emt 0:00:07]} 2. Nf3 {[%emt 0:00:04]} d6 {[%emt 0:00:07]} 3. d4 {[%emt 0:00:31]} cxd4 {[%emt 0:00:08]} 4. Nxd4 {[%emt 0:00:01]} Nf6 {[%emt 0:00:09]} 5. Nc3 {[%emt 0:00:03]} Nc6 {[%emt 0:00:07]} 6. Bg5 {[%emt 0:00:03]} e6 {[%emt 0:00:34]} 7. Qd2 {[%emt 0:00:03]} a6 {[%emt 0:00:09]} 8. O-O-O {[%emt 0:00:04]} Bd7 {[%emt 0:00:15]} 9. f4 {[%emt 0:00:23][%cal Bf2f4,Bf4f5][%mdl 32]} b5 {[%emt 0:03:03][%cal Bb7b5,Bb5b4][%mdl 32]} 10. Bxf6 {[%emt 0:00:11]} gxf6 {[%emt 0:00:10]} 11. f5 {[%emt 0:01:15] White is more active.} h5 {[%emt 0:01:18] [#] ...Bh6 is the strong threat.} 12. Kb1 {[%emt 0:00:17]} Qb6 {[%emt 0:10:53]} 13. Nxc6 {[%emt 0:00:50]} Bxc6 {[%emt 0:04:33]} 14. Qe1 {[%emt 0:05:52]} b4 $1 {[%emt 0:06:53] [#]} 15. Nd5 {[%emt 0:00:28]} Bxd5 {[%emt 0:00:14]} (15... exd5 $2 {loses.} 16. exd5+ Be7 17. dxc6 $18) 16. exd5 {[%emt 0:00:22]} e5 {[%emt 0:00:11] Black did not feel at home in the position after the opening.   Weighted Error Value: White=0.12 (very precise) /Black=0.06 (flawless) .  Inaccurate:     	White=1     	---        OK:         	White=2     	Black=2      Best:        	---       	Black=1      Strong:       	---       	Black=1} 1/2-1/2

[Event "Prague Open 2024"]
[Site "Prague"]
[Date "2024.01.12"]
[Round "9.15"]
[White "Rakovsky, Jakub"]
[Black "Ye, Fan"]
[Result "1/2-1/2"]
[ECO "B30"]
[WhiteElo "2157"]
[BlackElo "1660"]
[Annotator "TA"]
[PlyCount "59"]
[EventDate "2024.01.02"]
[EventType "swiss"]
[EventCountry "CZE"]
[SourceTitle "playchess.com"]
[Source "ChessBase"]
[SourceQuality "1"]
[TimeControl "40/5400+30:1800+30"]

{[%evp 14,59,0,0,6,10,15,15,16,22,23,0,0,0,18,0,4,0,11,2,30,0,0,-31,-14,-19,-22,-36,-32,-22,-12,-8,-12,-38,-40,-29,-4,-55,-44,-61,-57,-50,-62,-83,-73,-91,-87,-121]} 1. e4 {[%emt 0:00:04][%cal Be2e4,Be4e5][%mdl 32]} c5 {[%emt 0:00:02]} 2. Nf3 {[%emt 0:00:23]} Nc6 {[%emt 0:00:04]} 3. c3 {[%emt 0:00:48][%cal Bc2c3,Bc3d4,Bd4e5][%mdl 32]} Nf6 {[%emt 0:00:03]} 4. e5 {[%emt 0:00:51]} Nd5 {[%emt 0:00:02]} 5. d4 {[%emt 0:00:57]} cxd4 {[%emt 0:00:03]} 6. cxd4 {[%emt 0:00:15]} d6 {[%emt 0:00:01]} 7. Bc4 {[%emt 0:09:12]} dxe5 {[%emt 0:00:18]} 8. dxe5 {[%emt 0:01:04]} Be6 {[%emt 0:00:04][%cal Od5e3]} 9. O-O {[%emt 0:01:14]} Nc7 {[%emt 0:00:11]} 10. Qe2 {[%emt 0:06:44]} g6 {[%emt 0:00:11] The position is equal.} 11. Nc3 {[%emt 0:03:50]} Bg7 {[%emt 0:00:07]} 12. Bf4 {[%emt 0:04:38]} O-O {[%emt 0:00:23]} 13. Rfd1 {[%emt 0:04:56] Inhibits Nd4.} Qc8 {[%emt 0:00:15]} 14. Rac1 {[%emt 0:02:07]} h6 {[%emt 0:07:54]} 15. Bd3 {[%emt 0:03:06]} Bf5 {[%emt 0:05:43]} 16. Qe3 {[%emt 0:04:05]} Kh7 {[%emt 0:02:23]} 17. Be4 {[%emt 0:09:16]} Bxe4 {[%emt 0:07:11]} 18. Nxe4 {[%emt 0:05:33]} Ne6 {[%emt 0:00:53]} 19. Bg3 {[%emt 0:09:13]} Rd8 {[%emt 0:03:50]} 20. a3 {[%emt 0:01:24]} Rxd1+ {[%emt 0:03:28]} 21. Rxd1 {[%emt 0:00:08]} Qc7 {[%emt 0:00:12][%cal Oa8d8]} 22. Nf6+ {[%emt 0:01:27]} Kh8 {[%emt 0:10:52][%cal Oa8d8]} (22... exf6 {is interesting.} 23. exf6 Rd8 24. Rxd8 Qxd8 25. fxg7 Qd1+) 23. Nd5 {[%emt 0:09:17]} Qa5 {[%emt 0:02:29]} 24. Nf4 {[%emt 0:13:06]} Rd8 {[%emt 0:07:53]} 25. Rc1 {[%emt 0:02:39]} (25. Rxd8+ $11 Ncxd8 26. h4) 25... Nxf4 {[%emt 0:05:11]} (25... Nxe5 $2 {too greedy.} 26. Nxe5 Ng5 27. h4 $18) 26. Bxf4 {[%emt 0:01:18][%cal Oe5e6]} g5 {[%emt 0:01:13]} 27. Bg3 {[%emt 0:00:34]} e6 {[%emt 0:01:22]} 28. h3 {[%emt 0:01:27]} Rd5 {[%emt 0:03:56]} 29. Re1 {[%emt 0:03:07]} Qb5 {[%emt 0:02:58]} 30. Qe2 {[%emt 0:00:49] Weighted Error Value: White=0.12 (very precise) /Black=0.05 (flawless) .  Mistake:       	White=1     	---        Inaccurate:     	White=4     	Black=1      OK:         	White=4     	Black=10     Best:        	---       	Black=1} 1/2-1/2

[Event "Prague Open 2024"]
[Site "Prague"]
[Date "2024.01.12"]
[Round "9.16"]
[White "Zrust, Lukas"]
[Black "Arndt, Stefan"]
[Result "0-1"]
[ECO "B40"]
[WhiteElo "1623"]
[BlackElo "2130"]
[Annotator "TA"]
[PlyCount "62"]
[EventDate "2024.01.02"]
[EventType "swiss"]
[EventCountry "CZE"]
[SourceTitle "playchess.com"]
[Source "ChessBase"]
[SourceQuality "1"]
[TimeControl "40/5400+30:1800+30"]

{[%evp 13,62,-30,-40,-50,-63,-53,-58,-270,-100,-76,-91,-77,-76,-251,-248,-240,-234,-343,-249,-248,-232,-214,-197,-254,-238,-372,-376,-419,-387,-350,-212,-321,-322,-496,-482,-527,-366,-402,-391,-380,-367,-595,-557,-871,-847,-29976,-29977,-29988,-29989,-29989,-29990]} 1. e4 {[%emt 0:00:07]} c5 {[%emt 0:00:05]} 2. Nf3 {[%emt 0:00:15]} e6 {[%emt 0:00:08]} 3. d4 {[%emt 0:00:20]} cxd4 {[%emt 0:00:05]} 4. Nxd4 {[%emt 0:00:07]} Nf6 {[%emt 0:00:06]} 5. Nc3 {[%emt 0:00:43]} Nc6 {[%emt 0:00:05]} 6. Be3 {[%emt 0:01:09]} Bb4 {[%emt 0:01:55]} 7. f3 {[%emt 0:06:13]} d5 {[%emt 0:01:30]} 8. exd5 {[%emt 0:02:10]} Nxd5 {[%emt 0:01:53]} 9. Nxc6 {[%emt 0:03:05]} bxc6 {[%emt 0:00:12]} 10. Bd4 {[%emt 0:06:36] [#]} ({Better is} 10. Bd2 $15) 10... O-O $2 {[%emt 0:01:28]} (10... e5 $1 $19 {[%cal Re5d4] and Black stays clearly on top.} 11. Bxe5 O-O) 11. a3 $17 {[%emt 0:01:42]} Nxc3 {[%emt 0:02:31]} 12. bxc3 {[%emt 0:05:11]} Ba5 {[%emt 0:04:56][%cal Oe6e5] White must now prevent ...e5!} 13. Bd3 $2 {[%emt 0:03:26] [#]} e5 $1 $19 {[%emt 0:04:06][%mdl 512]} 14. Bc5 {[%emt 0:05:40][%cal Oe1g1]} Bxc3+ {[%emt 0:00:11]} 15. Kf1 {[%emt 0:00:13]} (15. Kf2 {is the only way for White.}) 15... Bxa1 {[%emt 0:04:42]} 16. Bxf8 {[%emt 0:00:32]} Bd4 {[%emt 0:00:32]} 17. Bb4 {[%emt 0:01:48]} Be6 {[%emt 0:01:17]} 18. h4 {[%emt 0:06:26]} (18. Qe2 {is a better defense.}) 18... Rb8 {[%emt 0:00:41]} 19. g3 {[%emt 0:01:19]} (19. Qe2 {was called for.}) 19... c5 {[%emt 0:05:41]} 20. Bd2 {[%emt 0:01:44]} c4 {[%emt 0:00:25]} 21. Be2 {[%emt 0:00:40]} c3 {[%emt 0:00:32]} 22. Be1 {[%emt 0:00:18]} (22. Bc1 $142) 22... Qa5 {[%emt 0:02:14] White is weak on the dark squares} 23. Bd3 {[%emt 0:04:02]} (23. h5 $142) 23... Qxa3 {[%emt 0:02:26]} 24. h5 {[%emt 0:01:17]} f5 {[%emt 0:02:07]} 25. Bf2 {[%emt 0:04:03]} Qc5 {[%emt 0:00:49]} 26. Bxd4 {[%emt 0:00:19]} Qxd4 {[%emt 0:00:07]} (26... exd4 $2 27. h6 $19) 27. Rh4 {[%emt 0:01:10] [#]} (27. Kg2 e4 28. fxe4) 27... e4 $1 {[%emt 0:03:08] And now ...Qd6 would win.} 28. fxe4 {[%emt 0:02:27]} (28. Kg2 Bd5) 28... fxe4 {[%emt 0:00:08] ( -> ...Rf8+)} 29. Rxe4 {[%emt 0:00:37]} Bh3+ {[%emt 0:01:04] Black mates.} 30. Ke2 {[%emt 0:02:18]} Bg4+ {[%emt 0:00:07]} 31. Kf1 {[%emt 0:00:54]} Rf8+ {[%emt 0:00:09] Weighted Error Value: White=0.98/Black=0.30.  Loses game:     	White=2     	---        Missed win:     	---       	Black=1      Mistake:       	White=6     	---        Inaccurate:     	White=2     	Black=2      OK:         	White=5     	Black=9      Best:        	White=1     	Black=2      Brilliant:      	---       	Black=1} (31... Bxd1 32. Rxd4 Rb1 (32... Bxh5 33. Rc4 $15) 33. Kf2 $11) 0-1

[Event "Prague Open 2024"]
[Site "Prague"]
[Date "2024.01.12"]
[Round "9.17"]
[White "Khandhar, Kaushal"]
[Black "Golis, Wiktor"]
[Result "1-0"]
[ECO "D00"]
[WhiteElo "1840"]
[BlackElo "2123"]
[Annotator "TA"]
[PlyCount "63"]
[EventDate "2024.01.02"]
[EventType "swiss"]
[EventCountry "CZE"]
[SourceTitle "playchess.com"]
[Source "ChessBase"]
[SourceQuality "1"]
[TimeControl "40/5400+30:1800+30"]

{[%evp 9,63,3,27,20,25,-7,12,0,0,-31,-26,-32,-31,-27,-21,-14,-13,-18,-27,-30,0,0,125,124,124,122,129,122,125,125,129,133,132,125,560,575,546,567,571,556,561,544,568,564,558,574,571,557,724,722,799,785,769,502,29997,29998]} 1. d4 {[%emt 0:15:43]} d5 {[%emt 0:00:18]} 2. Bf4 {[%emt 0:01:17]} c5 {[%emt 0:00:31]} 3. e3 {[%emt 0:00:09]} cxd4 {[%emt 0:00:18]} 4. exd4 {[%emt 0:00:07]} Nc6 {[%emt 0:00:09]} 5. c3 {[%emt 0:00:30]} e6 {[%emt 0:00:35]} 6. Nd2 {[%emt 0:01:31]} Bd6 {[%emt 0:06:32]} 7. Bg3 {[%emt 0:01:18]} Nge7 {[%emt 0:01:59]} 8. Bd3 {[%emt 0:01:01] The position is equal.} O-O {[%emt 0:06:41]} 9. f4 {[%emt 0:13:18]} f6 {[%emt 0:15:43]} 10. Qe2 {[%emt 0:07:32]} Qc7 {[%emt 0:01:04]} 11. Nh3 {[%emt 0:02:47]} e5 {[%emt 0:14:09]} 12. fxe5 {[%emt 0:03:34]} fxe5 {[%emt 0:00:20]} 13. dxe5 {[%emt 0:00:42]} Bxe5 {[%emt 0:04:10]} 14. O-O-O {[%emt 0:13:28][%cal Ba1d1,Bd1d5,Bd5f5][%mdl 32]} Bf5 {[%emt 0:12:21]} 15. Nf3 {[%emt 0:08:27]} Bd6 {[%emt 0:25:14]} (15... Bxg3 $11 {remains equal.} 16. hxg3 Rae8) 16. Bxf5 $16 {[%emt 0:04:10]} Nxf5 {[%emt 0:00:03]} 17. Qe6+ {[%emt 0:01:53]} Kh8 {[%emt 0:00:01][%cal Oc6b4]} 18. Rxd5 {[%emt 0:07:15]} Bxg3 {[%emt 0:05:56]} 19. Rxf5 {[%emt 0:03:39]} Bd6 {[%emt 0:00:39]} 20. Nhg5 {[%emt 0:02:34][%cal Bh3g5,Bg5f7,Bf7d8,Bd8e6][%mdl 32] [#] Threatens to win with Nf7+.} Bf4+ {[%emt 0:02:50]} 21. Kb1 {[%emt 0:00:24] White is more active.} g6 $2 {[%emt 0:00:47][%mdl 8192] This move loses the game for Black.} (21... Rxf5 $16 {is more resistant.} 22. Qxf5 Bxg5) 22. Nf7+ $18 {[%emt 0:05:18]} Kg8 {[%emt 0:00:07][%cal Bh8g8,Bg8g7,Bg7f8][%mdl 32]} 23. Nd8+ {[%emt 0:01:09]} Kg7 {[%emt 0:00:30]} 24. Rxf8 {[%emt 0:01:09]} Kxf8 {[%emt 0:00:11]} 25. Qf6+ {[%emt 0:00:55]} Kg8 {[%emt 0:00:01]} 26. Ne6 {[%emt 0:00:48][%csl LRc7,LRf4]} Qd7 {[%emt 0:00:35]} 27. Nxf4 {[%emt 0:00:32] Excellent horsemanship.} Re8 {[%emt 0:00:10]} 28. Kc1 {[%emt 0:01:53]} Qc7 {[%emt 0:02:04] [#]} 29. Nxg6 $1 {[%emt 0:00:55]} hxg6 {[%emt 0:00:11]} (29... Qg7 30. Qxg7+) 30. Qxg6+ {[%emt 0:00:04]} Kf8 {[%emt 0:00:06]} 31. Rf1 {[%emt 0:00:32] Threatening mate with Ne5+.} Re7 {[%emt 0:01:14]} (31... Qf7 $18 32. Qxf7+ (32. Nd2 Re1+ 33. Kc2 Rxf1 $11) 32... Kxf7 33. Ne5+ Kg7) 32. Ne5+ {[%emt 0:00:28] Weighted Error Value: White=0.23 (precise) /Black=0.76.  Loses game:     	---       	Black=1      Mistake:       	---       	Black=1      Inaccurate:     	White=2     	Black=1      OK:         	White=12    	Black=6      Best:        	White=5     	Black=2} 1-0

[Event "Prague Open 2024"]
[Site "Prague"]
[Date "2024.01.12"]
[Round "9.18"]
[White "Cziko, Eduard-Carol"]
[Black "Gomes, Mary Ann"]
[Result "0-1"]
[ECO "B40"]
[WhiteElo "1946"]
[BlackElo "2332"]
[Annotator "RC"]
[PlyCount "34"]
[EventDate "2024.01.02"]
[EventType "swiss"]
[EventCountry "CZE"]
[SourceTitle "playchess.com"]
[Source "ChessBase"]
[SourceQuality "1"]
[TimeControl "40/5400+30:1800+30"]

1. e4 {[%emt 0:00:05]} c5 {[%emt 0:00:43]} 2. Nf3 {[%emt 0:00:10]} e6 {[%emt 0:00:05]} 3. g3 {[%emt 0:00:21]} Nc6 {[%emt 0:00:29]} 4. Bg2 {[%emt 0:00:19]} Nf6 {[%emt 0:00:54]} 5. Nc3 {[%emt 0:00:41]} d6 {[%emt 0:01:46]} 6. O-O {[%emt 0:00:26]} Be7 {[%emt 0:00:50]} 7. d4 {[%emt 0:02:14]} cxd4 {[%emt 0:00:35]} 8. Nxd4 {[%emt 0:00:07]} Nxd4 {[%emt 0:00:20]} 9. Qxd4 {[%emt 0:00:08]} O-O {[%emt 0:00:11]} 10. Rd1 {[%emt 0:06:49]} Qa5 {[%emt 0:00:07]} 11. Ne2 {[%emt 0:09:41]} Bd7 {[%emt 0:04:00]} 12. Qd3 {[%emt 0:08:31]} Ng4 {[%emt 0:04:22]} 13. Bf4 {[%emt 0:08:08]} Qb6 {[%emt 0:11:44]} 14. Be3 {[%emt 0:13:52]} Nxe3 {[%emt 0:02:02]} 15. fxe3 {[%emt 0:00:19]} Rac8 {[%emt 0:02:08]} 16. e5 {[%emt 0:10:40]} Bb5 {[%emt 0:01:15]} 17. Qd2 {[%emt 0:00:31]} Bg5 {[%emt 0:01:16]} 0-1

[Event "Prague Open 2024"]
[Site "Prague"]
[Date "2024.01.12"]
[Round "9.19"]
[White "Berin, Artem"]
[Black "Elashvili, Giorgi"]
[Result "1-0"]
[ECO "A40"]
[WhiteElo "2327"]
[BlackElo "1942"]
[Annotator "RC"]
[PlyCount "117"]
[EventDate "2024.01.02"]
[EventType "swiss"]
[EventCountry "CZE"]
[SourceTitle "playchess.com"]
[Source "ChessBase"]
[SourceQuality "1"]
[TimeControl "40/5400+30:1800+30"]

1. d4 {[%emt 0:00:04]} e6 {[%emt 0:08:33]} 2. c4 {[%emt 0:00:07]} b6 {[%emt 0:00:11]} 3. a3 {[%emt 0:00:25]} Bb7 {[%emt 0:00:11]} 4. Nc3 {[%emt 0:00:07]} f5 {[%emt 0:00:45]} 5. d5 {[%emt 0:01:09]} Nf6 {[%emt 0:00:49]} 6. g3 {[%emt 0:00:44]} Na6 {[%emt 0:00:50]} 7. Bg2 {[%emt 0:01:49]} Nc5 {[%emt 0:01:02]} 8. Qc2 {[%emt 0:03:55]} Bd6 {[%emt 0:05:34]} 9. Nh3 {[%emt 0:01:39]} Be5 {[%emt 0:01:54]} 10. Nf4 {[%emt 0:07:20]} O-O {[%emt 0:12:19]} 11. O-O {[%emt 0:01:46]} Qe7 {[%emt 0:05:46]} 12. Be3 {[%emt 0:05:31]} Nce4 {[%emt 0:10:41]} 13. Nxe4 {[%emt 0:03:26]} Nxe4 {[%emt 0:00:52]} 14. dxe6 {[%emt 0:01:47]} dxe6 {[%emt 0:01:11]} 15. Nd3 {[%emt 0:00:38]} Bd6 {[%emt 0:11:52]} 16. c5 {[%emt 0:00:51]} bxc5 {[%emt 0:03:43]} 17. f3 {[%emt 0:00:32]} c4 {[%emt 0:05:50]} 18. Qxc4 {[%emt 0:01:24]} Bd5 {[%emt 0:00:36]} 19. Qc2 {[%emt 0:02:00]} Nf6 {[%emt 0:00:40]} 20. Rac1 {[%emt 0:06:52]} a5 {[%emt 0:04:25]} 21. Bf2 {[%emt 0:05:55]} Kh8 {[%emt 0:08:36]} 22. Nf4 {[%emt 0:01:44]} Bb7 {[%emt 0:03:24]} 23. Qb3 {[%emt 0:00:19]} e5 {[%emt 0:01:26]} 24. Ng6+ {[%emt 0:02:33]} hxg6 {[%emt 0:00:11]} 25. Qxb7 {[%emt 0:00:04]} Rab8 {[%emt 0:01:00]} 26. Qa6 {[%emt 0:00:49]} Rxb2 {[%emt 0:00:09]} 27. Qxa5 {[%emt 0:00:33]} Rxe2 {[%emt 0:01:24]} 28. Qb5 {[%emt 0:01:01]} Ra2 {[%emt 0:00:32]} 29. a4 {[%emt 0:01:10]} Qd7 {[%emt 0:02:16]} 30. Qxd7 {[%emt 0:01:10]} Nxd7 {[%emt 0:00:01]} 31. Ra1 {[%emt 0:00:07]} Rc2 {[%emt 0:05:23]} 32. a5 {[%emt 0:00:41]} Ra8 {[%emt 0:01:16]} 33. a6 {[%emt 0:03:28]} Nc5 {[%emt 0:03:06]} 34. a7 {[%emt 0:01:05]} Nd3 {[%emt 0:00:04]} 35. Rfb1 {[%emt 0:00:58]} c5 {[%emt 0:00:38]} 36. Rb6 {[%emt 0:01:05]} Rxf2 {[%emt 0:00:48]} 37. Rxd6 {[%emt 0:00:11]} c4 {[%emt 0:00:08]} 38. Rxd3 {[%emt 0:02:42]} Rxg2+ {[%emt 0:00:04]} 39. Kxg2 {[%emt 0:00:06]} cxd3 {[%emt 0:00:02]} 40. Kf2 {[%emt 0:00:08]} e4 {[%emt 0:01:04]} 41. Ke3 {[%emt 0:33:09]} Kh7 {[%emt 0:30:46]} 42. g4 {[%emt 0:02:59]} Kh6 {[%emt 0:00:00]} 43. Ra5 {[%emt 0:00:00]} exf3 {[%emt 0:00:00]} 44. Kxf3 {[%emt 0:00:00]} Kg5 {[%emt 0:00:00]} 45. gxf5 {[%emt 0:00:00]} gxf5 {[%emt 0:00:00]} 46. Ke3 {[%emt 0:00:00]} Kg4 {[%emt 0:00:00]} 47. Kxd3 {[%emt 0:00:00]} g5 {[%emt 0:00:00]} 48. Ke3 {[%emt 0:00:00]} Kh3 {[%emt 0:02:15]} 49. Ra2 {[%emt 0:00:00]} Kg4 {[%emt 0:01:36]} 50. Ra6 {[%emt 0:00:00]} Kh3 {[%emt 0:01:05]} 51. Kf2 {[%emt 0:00:00]} Kg4 {[%emt 0:00:20]} 52. Ra3 {[%emt 0:00:00]} f4 {[%emt 0:00:36]} 53. Ra5 {[%emt 0:00:00]} Kh4 {[%emt 0:00:30]} 54. Kf3 {[%emt 0:00:00]} Kh5 {[%emt 0:00:22]} 55. Ra6 {[%emt 0:00:00]} g4+ {[%emt 0:00:38]} 56. Kxf4 {[%emt 0:00:00]} Rf8+ {[%emt 0:00:34]} 57. Ke5 {[%emt 0:00:00]} Ra8 {[%emt 0:00:24]} 58. Kd6 {[%emt 0:00:00]} Kh4 {[%emt 0:00:11]} 59. Kc7 {[%emt 0:00:00]} 1-0

[Event "Prague Open 2024"]
[Site "Prague"]
[Date "2024.01.12"]
[Round "9.20"]
[White "Grave, Jacob Templen"]
[Black "Shen, Zhiyuan"]
[Result "1-0"]
[ECO "D35"]
[WhiteElo "2296"]
[BlackElo "1937"]
[Annotator "RC"]
[PlyCount "115"]
[EventDate "2024.01.02"]
[EventType "swiss"]
[EventCountry "CZE"]
[SourceTitle "playchess.com"]
[Source "ChessBase"]
[SourceQuality "1"]
[TimeControl "40/5400+30:1800+30"]

1. d4 {[%emt 0:00:16]} d5 {[%emt 0:00:15]} 2. c4 {[%emt 0:00:24]} e6 {[%emt 0:00:07]} 3. Nc3 {[%emt 0:01:35]} Nf6 {[%emt 0:00:55]} 4. cxd5 {[%emt 0:00:10]} exd5 {[%emt 0:00:10]} 5. Bg5 {[%emt 0:00:06]} Be7 {[%emt 0:00:19]} 6. e3 {[%emt 0:00:07]} c6 {[%emt 0:00:13]} 7. Bd3 {[%emt 0:00:11]} Nbd7 {[%emt 0:00:20]} 8. Qc2 {[%emt 0:00:24]} O-O {[%emt 0:00:19]} 9. Nge2 {[%emt 0:00:33]} Re8 {[%emt 0:04:01]} 10. O-O {[%emt 0:00:32]} h6 {[%emt 0:01:23]} 11. Bh4 {[%emt 0:02:23]} Nh5 {[%emt 0:07:41]} 12. Bxe7 {[%emt 0:01:45]} Qxe7 {[%emt 0:00:13]} 13. Rab1 {[%emt 0:03:31]} Nhf6 {[%emt 0:07:40]} 14. b4 {[%emt 0:02:17]} a6 {[%emt 0:02:20]} 15. a4 {[%emt 0:02:40]} b5 {[%emt 0:02:18]} 16. a5 Nf8 {[%emt 0:13:28]} 17. Na2 {[%emt 0:13:26]} Bd7 {[%emt 0:05:00]} 18. Nac1 {[%emt 0:07:48]} Ne4 {[%emt 0:07:46]} 19. Bxe4 {[%emt 0:11:58]} dxe4 {[%emt 0:12:55]} 20. Ng3 {[%emt 0:07:28]} Rac8 {[%emt 0:06:43]} 21. Nb3 f5 22. Nc5 {[%emt 0:01:51]} Ra8 {[%emt 0:05:18]} 23. Rbc1 {[%emt 0:03:30]} Bc8 {[%emt 0:01:56]} 24. Rfd1 {[%emt 0:01:06]} Qf7 {[%emt 0:01:11]} 25. Qb3 {[%emt 0:05:28]} Ne6 {[%emt 0:01:50]} 26. h4 {[%emt 0:08:21]} Nc7 {[%emt 0:03:01]} 27. Qxf7+ {[%emt 0:10:30]} Kxf7 {[%emt 0:00:04]} 28. Rd2 {[%emt 0:00:31]} Nd5 {[%emt 0:02:38]} 29. Rb2 {[%emt 0:00:11]} Ra7 {[%emt 0:02:21]} 30. Ne2 {[%emt 0:01:00]} g5 {[%emt 0:01:03]} 31. hxg5 {[%emt 0:05:17]} hxg5 {[%emt 0:00:05]} 32. Nc3 {[%emt 0:00:35]} Nf6 {[%emt 0:03:51]} 33. Rd1 {[%emt 0:02:32]} Rd8 {[%emt 0:01:18]} 34. f3 {[%emt 0:02:06]} exf3 {[%emt 0:02:55]} 35. gxf3 {[%emt 0:00:04]} Re7 {[%emt 0:02:31]} 36. e4 {[%emt 0:01:36]} fxe4 {[%emt 0:01:13]} 37. fxe4 {[%emt 0:00:40]} Kg6 {[%emt 0:00:49]} 38. e5 {[%emt 0:01:38]} Ng4 {[%emt 0:00:52]} 39. Re2 {[%emt 0:02:13]} Rh8 {[%emt 0:01:08]} 40. N3e4 {[%emt 0:03:14]} Reh7 {[%emt 0:01:27]} 41. Ng3 {[%emt 0:03:55]} Rh3 {[%emt 0:10:18]} 42. Rd3 {[%emt 0:01:47]} Bf5 {[%emt 0:03:52]} 43. Rb3 {[%emt 0:01:20]} R3h7 {[%emt 0:03:44]} 44. Rf3 {[%emt 0:04:57]} Bc8 {[%emt 0:04:24]} 45. Re4 {[%emt 0:02:26]} Rh3 {[%emt 0:03:56]} 46. Rb3 {[%emt 0:06:10]} Nh6 {[%emt 0:04:44]} 47. e6 {[%emt 0:01:09]} Nf5 {[%emt 0:00:29]} 48. Nxf5 {[%emt 0:05:11]} Rh1+ {[%emt 0:00:07]} 49. Kf2 {[%emt 0:00:15]} R1h2+ {[%emt 0:01:07]} 50. Ke1 {[%emt 0:01:09]} Rh1+ {[%emt 0:00:48]} 51. Kd2 {[%emt 0:00:48]} R1h2+ {[%emt 0:00:45]} 52. Kc1 {[%emt 0:04:23]} Rh1+ {[%emt 0:00:07]} 53. Kb2 {[%emt 0:01:26]} R1h2+ {[%emt 0:01:40]} 54. Ka3 {[%emt 0:00:34]} Kxf5 {[%emt 0:00:11]} 55. Rf3+ {[%emt 0:00:27]} Kg6 {[%emt 0:00:04]} 56. e7 {[%emt 0:00:30]} Re8 {[%emt 0:01:23]} 57. Rf8 {[%emt 0:00:19]} Rh8 {[%emt 0:00:30]} 58. Rxh8 {[%emt 0:00:10]} 1-0